bitfinex-derivatives/quotes_ETHF0:USTF0_20210705
["timestamp","ask_amount","ask_price","bid_price","bid_amount"]
[1625516063013,60.03217,2237.8,2237.6,2.20527]
[1625516063367,60.03217,2237.8,2237.7,0.66180967]
[1625516068992,60.03217,2237.8,2237.5,0.79416292]
[1625516069093,62.23744,2237.8,2237.6,0.20715962]
[1625516069296,62.23744,2237.8,2237.5,0.79416292]
[1625516069396,62.23744,2237.8,2237.3,2.63900825]
[1625516069498,5.0,2237.7,2237.1,3.4306943]
[1625516069598,1.0,2237.6,2237.1,9.43e-05]
[1625516069699,1.0,2237.6,2236.8,3.95865037]
[1625516069799,1.0,2237.6,2236.8,2.63910948]
[1625516070301,1.0,2237.6,2236.1,1.31992005]
[1625516070501,1.0,2237.6,2236.2,0.20700473]
[1625516070703,43.7561,2236.8,2236.2,0.20700473]
[1625516070802,1.0,2236.7,2236.1,0.20700607]
[1625516071103,2.20527,2236.6,2236.5,2.20527]
[1625516071203,3.20527,2236.6,2236.5,2.20527]
[1625516071303,43.74017,2236.6,2236.5,2.20527]
[1625516071508,47.16267,2236.6,2236.5,2.20527]
[1625516073116,49.36794,2236.6,2236.5,2.20527]
[1625516073615,8.83304,2236.6,2236.5,2.20527]
[1625516073766,5.41054,2236.6,2236.5,2.20527]
[1625516074472,5.41054,2236.6,2236.5,50.96667]
[1625516074823,4.41054,2236.6,2236.5,50.96667]
[1625516075026,1.0,2236.9,2236.5,50.96667]
[1625516075237,1.0,2236.9,2236.5,53.16067]
[1625516076435,1.0,2236.9,2236.6,0.2066018]
[1625516077135,1.0,2236.9,2236.8,2.20527]
[1625516077891,40.5285,2236.9,2236.8,2.20527]
[1625516078642,41.5285,2236.9,2236.8,2.20527]
[1625516079847,41.5285,2236.9,2236.8,4.86977]
[1625516081301,41.5285,2236.9,2236.8,2.6645]
[1625516081401,41.5285,2236.9,2236.5,50.96667]
[1625516082656,1.0,2236.9,2236.5,50.96667]
[1625516083159,2.20527,2236.6,2236.5,53.17194]
[1625516083260,2.20527,2236.6,2236.5,53.37832098]
[1625516083912,2.20527,2236.6,2236.5,4.61692098]
[1625516084016,3.20527,2236.6,2236.5,4.61692098]
[1625516084116,3.20527,2236.6,2236.5,4.41054]
[1625516084915,42.65657,2236.6,2235.9,13.7752]
[1625516085218,2.20527,2236.1,2236.0,2.20527]
[1625516085315,3.20527,2236.1,2236.0,2.20527]
[1625516085518,43.64527,2236.1,2236.0,2.20527]
[1625516085818,42.64527,2236.1,2236.0,2.20527]
[1625516086217,42.64527,2236.1,2236.0,2.86741285]
[1625516087120,43.64527,2236.1,2236.0,2.20527]
[1625516087219,45.85054,2236.1,2236.0,2.20527]
[1625516087319,44.85054,2236.1,2236.0,2.20527]
[1625516088131,45.85054,2236.1,2236.0,2.20527]
[1625516089691,45.85054,2236.1,2236.0,2.33770034]
[1625516089891,44.85054,2236.1,2236.0,2.33770034]
[1625516089995,45.85054,2236.1,2236.0,2.33770034]
[1625516092547,5.41054,2236.1,2236.0,2.33770034]
[1625516093598,1.0,2236.1,2236.0,2.33770034]
[1625516094901,1.0,2236.1,2236.0,2.20527]
[1625516095302,5.41054,2236.1,2235.8,17.0]
[1625516095852,5.41054,2236.1,2235.8,16.9662]
[1625516095954,8.08344,2236.1,2235.8,16.8644]
[1625516096253,8.08344,2236.1,2235.8,8.0]
[1625516096605,8.08344,2236.1,2235.8,0.9166]
[1625516096905,13.08344,2236.1,2235.8,0.0001]
[1625516097355,13.08344,2236.1,2235.7,0.0001]
[1625516097858,8.08344,2236.1,2235.7,0.0001]
[1625516098157,13.08344,2236.1,2235.7,0.0001]
[1625516099261,2.20527,2235.8,2235.7,0.0001]
[1625516099362,53.92787,2235.8,2235.7,0.0001]
[1625516102517,3.20527,2235.8,2235.7,0.0001]
[1625516103868,2.20527,2235.8,2235.7,0.0001]
[1625516104073,1.0,2236.2,2235.7,0.0001]
[1625516104170,1.0,2236.2,2235.7,2.1513]
[1625516104480,14.9643,2237.4,2235.7,2.1513]
[1625516104678,1.78664526,2237.8,2235.7,2.1513]
[1625516104896,1.78664526,2237.8,2236.7,38.183]
[1625516104993,1.0,2237.7,2236.7,41.5432]
[1625516105375,2.20527,2237.6,2237.5,2.20527]
[1625516105477,3.20527,2237.6,2237.5,4.99307]
[1625516105581,2.20527,2237.6,2237.5,4.99307]
[1625516109991,2.20527,2237.6,2237.5,2.7878]
[1625516110554,2.20527,2237.6,2237.2,2.20527]
[1625516110749,1.0,2237.5,2237.2,2.20527]
[1625516111251,1.0,2237.5,2236.2,1.15]
[1625516111356,2.20527,2236.9,2236.6,2.20527]
[1625516111452,5.11657,2236.9,2236.6,2.20527]
[1625516111664,6.11657,2236.9,2236.6,2.20527]
[1625516112402,48.9022,2236.7,2236.6,2.20527]
[1625516112503,49.9022,2236.7,2236.6,2.20527]
[1625516114058,49.9022,2236.7,2236.3,2.20527]
[1625516115361,2.20527,2236.4,2236.3,2.20527]
[1625516115761,49.9022,2236.7,2236.3,2.20527]
[1625516115966,1.0,2236.7,2236.3,2.20527]
[1625516116264,2.20527,2236.8,2236.3,2.20527]
[1625516116465,2.20527,2236.8,2236.3,4.74297]
[1625516116573,2.20527,2236.8,2236.5,37.692]
[1625516116665,1.79074746,2238.6,2236.5,37.692]
[1625516117067,1.79191359,2238.8,2236.5,37.692]
[1625516117167,1.79191359,2238.8,2236.6,0.13238604]
[1625516117367,2.20527,2237.6,2237.4,2.20527]
[1625516118170,2.20527,2237.6,2237.2,2.20527]
[1625516119087,3.20527,2237.6,2237.2,2.20527]
[1625516120286,2.20527,2237.6,2237.2,2.20527]
[1625516121237,1.0,2237.5,2237.2,2.20527]
[1625516121437,2.20527,2237.3,2237.2,2.20527]
[1625516123398,2.20527,2237.6,2237.2,2.20527]
[1625516124612,3.20527,2237.6,2237.2,2.20527]
[1625516127819,3.20527,2237.6,2236.5,37.692]
[1625516128020,3.20527,2237.6,2236.6,0.20597699]
[1625516128120,3.20527,2237.6,2236.6,0.33836152]
[1625516128371,3.20527,2237.6,2236.6,0.13238453]
[1625516128472,3.20527,2237.6,2236.5,37.692]
[1625516128573,3.20527,2237.6,2236.6,0.20604106]
[1625516128825,3.20527,2237.6,2236.6,0.33842543]
[1625516128924,3.20527,2237.6,2236.6,0.13238437]
[1625516129274,3.20527,2237.6,2236.7,0.20603485]
[1625516129525,47.9047,2237.5,2237.3,2.20527]
[1625516129774,1.0,2237.4,2237.3,2.20527]
[1625516130576,47.9047,2237.5,2237.3,2.20527]
[1625516131029,48.9047,2237.5,2237.3,2.20527]
[1625516131931,1.0,2237.5,2237.3,2.20527]
[1625516133959,1.0,2237.5,2237.1,2.20527]
[1625516135509,1.0,2237.5,2237.4,2.20527]
[1625516137514,3.20527,2237.5,2237.4,2.20527]
[1625516157646,3.20527,2237.5,2237.1,2.20527]
[1625516159711,3.20527,2237.5,2237.4,2.20527]
[1625516165439,3.20527,2237.5,2237.4,5.40357]
[1625516165943,3.20527,2237.5,2237.4,51.36687]
[1625516168698,2.20527,2237.5,2237.4,51.36687]
[1625516171758,2.20527,2237.9,2237.4,51.36687]
[1625516172160,2.20527,2237.9,2237.5,0.33933714]
[1625516172359,2.20527,2237.9,2237.5,0.13236367]
[1625516172459,1.0,2238.1,2237.5,0.13236367]
[1625516172608,1.0,2238.1,2237.4,51.36687]
[1625516172909,1.0,2238.1,2237.5,0.20711321]
[1625516173009,1.0,2238.1,2237.5,0.33947564]
[1625516173308,1.0,2238.1,2237.5,0.13236243]
[1625516173409,1.0,2238.1,2237.4,51.36687]
[1625516173509,1.0,2238.1,2237.5,0.20704069]
[1625516173709,1.0,2238.1,2237.5,0.33939967]
[1625516173810,1.0,2238.1,2238.0,4.41054]
[1625516174961,1.0,2238.1,2238.0,7.27414]
[1625516175614,1.0,2238.1,2238.0,59.06324]
[1625516176163,1.29025857,2239.0,2238.0,59.06324]
[1625516176266,1.0,2238.9,2238.0,59.06324]
[1625516176865,1.0,2238.9,2238.8,38.9596]
[1625516176965,1.0,2238.9,2238.8,41.6083]
[1625516177868,3.20527,2238.9,2238.8,43.81357]
[1625516180872,2.20527,2238.9,2238.8,43.81357]
[1625516183389,2.20527,2238.9,2238.8,4.85397]
[1625516183490,3.20527,2238.9,2238.8,2.20527]
[1625516183692,3.20527,2238.9,2238.0,51.7891]
[1625516183891,3.20527,2238.9,2238.4,2.20527]
[1625516185429,3.20527,2238.9,2238.4,4.72807]
[1625516185521,1.0,2238.9,2238.4,4.72807]
[1625516185629,1.29374462,2239.0,2238.4,4.72807]
[1625516185713,1.2947393,2239.1,2238.4,4.72807]
[1625516185931,1.2947393,2239.1,2239.0,4.41054]
[1625516186013,2.20527,2239.3,2239.0,53.74254]
[1625516187469,1.0,2239.4,2239.0,49.332]
[1625516187571,1.0,2239.4,2239.0,46.6028]
[1625516187671,1.0,2239.4,2238.0,51.7891]
[1625516188020,2.20527,2239.0,2238.9,2.20527]
[1625516188120,3.20527,2239.0,2238.9,2.20527]
[1625516188780,2.20527,2239.0,2238.9,2.20527]
[1625516189074,3.20527,2239.0,2238.9,2.20527]
[1625516189926,2.20527,2239.0,2238.9,2.20527]
[1625516191277,3.20527,2239.0,2238.9,2.20527]
[1625516192036,2.20527,2239.0,2238.9,2.20527]
[1625516192534,2.20527,2239.2,2238.9,2.20527]
[1625516193086,2.20527,2239.2,2238.7,2.20527]
[1625516193186,1.0,2239.1,2237.8,1.31549337]
[1625516193550,2.29715527,2239.1,2237.9,0.13233951]
[1625516193954,2.20527,2238.6,2238.4,2.20527]
[1625516194055,1.0,2238.5,2238.4,2.20527]
[1625516195210,4.39607,2238.6,2238.4,2.20527]
[1625516195311,5.39607,2238.6,2238.4,2.20527]
[1625516196061,7.60134,2238.6,2238.4,2.20527]
[1625516196511,7.60134,2238.6,2237.6,14.634]
[1625516196914,7.60134,2238.6,2237.7,0.13234505]
[1625516197012,42.4102,2238.4,2237.7,0.13234505]
[1625516197112,1.0,2238.3,2237.7,0.13234505]
[1625516198066,1.0,2238.3,2238.1,2.20527]
[1625516200017,2.20527,2238.2,2238.1,2.20527]
[1625516200116,3.20527,2238.2,2238.1,2.20527]
[1625516203782,2.20527,2238.2,2238.1,2.20527]
[1625516204633,1.0,2238.5,2238.1,2.20527]
[1625516205590,2.20527,2238.6,2238.1,2.20527]
[1625516206106,2.20527,2238.6,2238.5,2.20527]
[1625516206299,3.20527,2238.6,2238.5,2.20527]
[1625516206750,3.20527,2238.6,2238.5,57.95627]
[1625516207263,2.20527,2238.6,2238.5,57.95627]
[1625516207359,2.20527,2238.6,2238.5,60.29737]
[1625516208564,3.20527,2238.6,2238.5,60.29737]
[1625516208713,2.20527,2238.6,2238.5,60.29737]
[1625516213170,2.20527,2238.6,2238.5,57.95627]
[1625516213524,3.20527,2238.6,2238.5,57.95627]
[1625516213622,2.20527,2238.6,2238.5,57.95627]
[1625516230889,42.0621,2238.9,2238.5,57.95627]
[1625516230987,1.0,2238.9,2238.5,57.95627]
[1625516231886,1.0,2238.9,2238.8,52.2355]
[1625516232440,1.0,2238.9,2238.8,54.44077]
[1625516234357,1.0,2238.9,2238.8,56.76827]
[1625516236315,2.20527,2239.4,2238.8,56.76827]
[1625516236513,1.0,2239.3,2238.8,56.76827]
[1625516238533,1.0,2239.3,2239.2,2.20527]
[1625516246224,2.20527,2239.6,2239.2,2.20527]
[1625516246324,1.0,2239.6,2239.2,2.20527]
[1625516246426,1.30481354,2239.8,2239.2,2.20527]
[1625516246729,1.30481354,2239.8,2239.7,4.41054]
[1625516246829,1.30481354,2239.8,2239.7,49.06194]
[1625516247130,0.14181354,2239.8,2239.7,49.06194]
[1625516247229,2.60962708,2240.1,2239.7,49.06194]
[1625516247381,1.30622809,2240.4,2239.7,49.06194]
[1625516247483,1.30622809,2240.4,2240.2,1.15]
[1625516247586,1.30622809,2240.4,2240.2,3.4347]
[1625516247783,0.95572809,2240.4,2240.2,3.4347]
[1625516247983,4.03398932,2240.5,2240.2,3.4347]
[1625516247984,2.20527,2240.5,2240.2,3.4347]
[1625516248333,1.0,2241.0,2240.2,3.4347]
[1625516248583,1.0,2241.0,2240.9,40.3414]
[1625516248684,1.0,2241.0,2240.9,43.5498]
[1625516248785,1.0,2241.0,2240.9,47.96034]
[1625516249885,1.82843421,2241.5,2240.9,47.96034]
[1625516249985,1.0,2241.4,2240.9,47.96034]
[1625516250384,1.82843421,2241.5,2240.9,47.96034]
[1625516250487,1.82843421,2241.5,2241.3,52.6423]
[1625516250686,1.82843421,2241.5,2240.9,47.96034]
[1625516250687,1.8292413,2241.6,2240.9,47.96034]
[1625516250785,2.20527,2241.5,2241.4,2.20527]
[1625516251001,3.20527,2241.5,2241.4,2.20527]
[1625516251247,3.20527,2241.5,2240.2,1.15]
[1625516251338,54.79067576,2241.5,2240.2,1.15]
[1625516251641,1.82865958,2241.2,2240.2,1.15]
[1625516251742,1.0,2241.1,2240.2,1.15]
[1625516252040,1.0,2241.1,2239.6,39.0752]
[1625516252041,47.4977,2240.7,2239.6,39.0752]
[1625516252140,1.0,2240.6,2239.6,39.0752]
[1625516252592,1.0,2240.6,2238.7,49.7407]
[1625516252741,1.0,2240.6,2240.4,2.20527]
[1625516252842,2.20527,2240.5,2240.2,2.20527]
[1625516252942,1.0,2240.4,2240.2,2.20527]
[1625516254305,1.0,2240.4,2239.2,39.3262]
[1625516254768,1.0,2240.4,2239.8,17.07557]
[1625516254769,2.20527,2239.9,2239.8,17.07557]
[1625516255071,2.20527,2239.9,2239.8,2.20527]
[1625516255920,3.20527,2239.9,2239.8,2.20527]
[1625516256069,1.0,2239.9,2239.8,2.20527]
[1625516256778,2.20527,2240.0,2239.8,2.20527]
[1625516257331,1.0,2239.9,2239.8,2.20527]
[1625516257481,2.20527,2240.0,2239.8,2.20527]
[1625516257832,3.1832,2240.1,2239.8,2.20527]
[1625516257932,1.0,2240.1,2239.8,2.20527]
[1625516260891,2.20527,2239.9,2239.8,2.20527]
[1625516260991,51.84507,2239.9,2239.8,2.20527]
[1625516261443,51.84507,2239.9,2238.5,15.015]
[1625516262246,50.1342,2238.6,2238.5,15.015]
[1625516262346,54.2002,2238.6,2238.5,15.015]
[1625516262545,54.2002,2238.6,2237.7,1.8396251]
[1625516262745,54.2002,2238.6,2237.6,1.83975147]
[1625516262845,2.20527,2238.5,2238.4,2.20527]
[1625516262945,3.20527,2238.5,2238.4,2.20527]
[1625516265002,1.0,2238.5,2238.4,2.20527]
[1625516267974,1.0,2238.6,2238.4,2.20527]
[1625516268925,1.0,2238.6,2238.5,2.20527]
[1625516269427,2.20527,2238.7,2238.5,2.20527]
[1625516269631,3.20527,2238.9,2238.5,2.20527]
[1625516272938,3.20527,2238.9,2238.8,2.20527]
[1625516281058,3.20527,2238.9,2238.5,2.20527]
[1625516283109,4.82977,2238.6,2238.5,2.20527]
[1625516283209,5.82977,2238.6,2238.5,2.20527]
[1625516284874,4.82977,2238.6,2238.5,2.20527]
[1625516285075,5.82977,2238.6,2238.5,2.20527]
[1625516285522,4.82977,2238.6,2238.5,2.20527]
[1625516286179,5.82977,2238.6,2238.5,2.20527]
[1625516286783,5.82977,2238.6,2238.3,52.84297]
[1625516287086,5.82977,2238.6,2238.3,2.20527]
[1625516287191,2.20527,2238.4,2238.0,2.20527]
[1625516287286,1.0,2238.3,2238.0,2.20527]
[1625516288739,47.04387,2238.4,2238.0,2.20527]
[1625516288839,1.0,2238.3,2238.0,2.20527]
[1625516289239,2.20527,2238.1,2238.0,2.20527]
[1625516289790,2.20527,2238.1,2238.0,2.33760125]
[1625516290139,1.0,2238.3,2238.0,2.33760125]
[1625516290539,1.0,2238.3,2238.0,2.20527]
[1625516292998,1.0,2238.3,2238.1,0.1323288]
[1625516293100,1.0,2238.3,2238.2,38.0402]
[1625516293203,4.41054,2238.4,2238.2,40.24547]
[1625516293649,47.0208,2239.0,2238.2,40.24547]
[1625516293749,3.39041953,2239.7,2238.3,0.13231448]
[1625516293750,47.0975,2239.4,2238.3,0.13231448]
[1625516294199,47.0975,2239.4,2238.8,43.4139]
[1625516294301,47.0975,2239.4,2238.8,45.7783]
[1625516294400,1.0,2239.3,2238.8,45.7783]
[1625516295253,3.20527,2239.3,2239.2,2.20527]
[1625516295602,3.20527,2239.3,2238.8,45.7783]
[1625516297260,3.20527,2239.3,2239.0,2.20527]
[1625516297356,3.20527,2239.3,2239.2,43.1052]
[1625516299012,1.0,2239.3,2239.2,43.1052]
[1625516299130,1.0,2239.6,2239.2,43.1052]
[1625516299219,6.58802621,2240.3,2239.2,43.1052]
[1625516299313,2.20527,2240.1,2239.5,4.41054]
[1625516299415,2.20527,2240.1,2239.5,2.3844]
[1625516299618,5.60027,2240.1,2239.5,2.3844]
[1625516300023,41.6245,2239.6,2239.5,2.3844]
[1625516300119,44.8315,2239.6,2239.5,2.3844]
[1625516300220,45.8315,2239.6,2239.5,2.3844]
[1625516300420,4.207,2239.6,2239.5,2.3844]
[1625516300528,3.207,2239.6,2238.6,15.2195]
[1625516300829,3.207,2239.6,2238.7,0.20560586]
[1625516300929,3.207,2239.6,2238.7,0.99920792]
[1625516301180,3.207,2239.6,2238.7,0.79360206]
[1625516301280,3.207,2239.6,2239.5,51.48127]
[1625516301379,5.60027,2240.1,2239.5,50.48127]
[1625516303284,2.20527,2239.6,2239.5,50.48127]
[1625516304240,2.20527,2240.1,2239.5,50.48127]
[1625516304338,2.20527,2240.1,2239.5,53.84067]
[1625516304540,2.20527,2240.1,2239.5,54.84067]
[1625516305292,2.20527,2240.1,2239.9,2.20527]
[1625516307301,2.20527,2240.0,2239.9,2.20527]
[1625516313477,2.20527,2240.0,2239.9,56.81067]
[1625516314586,2.20527,2240.0,2239.9,57.81067]
[1625516314888,44.68478013,2240.5,2239.9,57.81067]
[1625516315088,42.8546,2240.5,2239.9,57.81067]
[1625516315437,2.20527,2240.1,2239.9,57.81067]
[1625516317392,2.20527,2240.1,2239.9,60.01594]
[1625516322108,2.20527,2240.1,2239.9,63.28264]
[1625516323310,2.20527,2240.1,2239.9,61.07737]
[1625516323409,2.20527,2240.1,2239.9,57.81067]
[1625516323510,2.20527,2240.1,2239.9,56.81067]
[1625516323611,2.20527,2240.1,2239.9,57.81067]
[1625516326165,44.21147,2240.3,2239.9,57.81067]
[1625516326866,2.20527,2240.3,2239.9,57.81067]
[1625516327520,2.20527,2240.3,2240.2,2.20527]
[1625516328339,2.20527,2240.3,2240.2,42.79417]
[1625516330693,2.20527,2240.3,2240.2,40.5889]
[1625516333551,2.20527,2240.3,2240.2,42.79417]
[1625516335753,2.20527,2240.3,2240.2,40.5889]
[1625516335854,5.07987,2240.3,2240.2,40.5889]
[1625516336710,5.07987,2240.3,2238.7,1.8395928]
[1625516337107,5.07987,2240.3,2238.8,1.0]
[1625516337412,43.0656,2239.1,2238.9,0.13226334]
[1625516337507,46.4865,2239.1,2238.9,0.13226334]
[1625516337615,46.4865,2239.1,2239.0,2.20527]
[1625516337709,46.4865,2239.1,2239.0,3.20527]
[1625516337807,46.4865,2239.1,2239.0,2.20527]
[1625516338109,46.4865,2239.1,2239.0,2.33753715]
[1625516338310,46.4865,2239.1,2239.0,3.33753715]
[1625516338910,46.4865,2239.1,2239.0,3.20527]
[1625516339314,46.4865,2239.1,2239.0,3.33754376]
[1625516342620,3.4209,2239.1,2239.0,3.33754376]
[1625516342718,4.41054,2239.3,2239.0,3.33754376]
[1625516343122,4.41054,2239.3,2239.1,0.13226884]
[1625516347040,53.8224,2239.4,2239.1,0.13226884]
[1625516347728,4.41054,2239.2,2239.1,0.13226884]
[1625516347878,53.8224,2239.4,2239.1,0.13226884]
[1625516348329,53.8224,2239.4,2239.0,0.13226901]
[1625516349733,4.41054,2239.1,2238.9,46.6717]
[1625516350181,4.41054,2239.1,2239.0,0.1322681]
[1625516351081,53.8224,2239.4,2239.0,0.1322681]
[1625516351183,53.8224,2239.4,2239.0,2.5959681]
[1625516351283,53.8224,2239.4,2239.1,1.0]
[1625516351531,64.5179,2240.1,2239.1,1.0]
[1625516351731,2.20527,2239.8,2239.7,2.20527]
[1625516351833,2.20527,2239.8,2239.7,6.50147]
[1625516351936,2.20527,2239.8,2239.7,5.50147]
[1625516352036,2.20527,2239.8,2239.7,55.95847]
[1625516352395,2.20527,2239.8,2239.7,56.95847]
[1625516353750,4.41054,2239.8,2239.7,56.95847]
[1625516354200,46.81984,2239.8,2239.7,56.95847]
[1625516354400,46.81984,2239.8,2239.7,55.95847]
[1625516354952,46.81984,2239.8,2239.7,5.50147]
[1625516356005,4.41054,2239.8,2239.7,6.50147]
[1625516356361,6.59101144,2240.7,2239.7,6.50147]
[1625516356559,6.59101144,2240.7,2239.7,6.63370113]
[1625516356661,4.759,2240.7,2239.7,6.63370113]
[1625516356862,4.759,2240.7,2239.8,0.1322281]
[1625516356963,1.8326652,2240.9,2239.8,0.1322281]
[1625516357062,1.83295994,2241.0,2240.5,53.1736]
[1625516357164,1.83295994,2241.0,2240.5,56.7228]
[1625516357765,2.20527,2240.7,2240.6,2.20527]
[1625516357967,2.20527,2240.7,2240.6,3.20527]
[1625516359848,4.41054,2240.7,2240.6,3.20527]
[1625516360706,4.41054,2240.7,2239.6,14.0759]
[1625516360707,5.41054,2240.7,2239.6,14.0759]
[1625516360910,10.16954,2240.7,2239.6,14.0759]
[1625516361004,10.16954,2240.7,2239.5,1.84007397]
[1625516361207,53.3627,2239.6,2239.1,1.84016278]
[1625516361309,1.0,2239.5,2239.1,1.84016278]
[1625516361410,1.0,2239.5,2239.1,0.40116278]
[1625516361509,1.0,2239.5,2239.0,2.62880397]
[1625516361638,1.0,2239.5,2238.0,3.15585803]
[1625516361871,4.41054,2238.1,2238.0,1.81485803]
[1625516361912,5.41054,2238.1,2238.0,1.81485803]
[1625516362016,7.61424,2238.1,2238.0,1.66625803]
[1625516362115,7.61424,2238.1,2237.0,1.84179029]
[1625516362314,5.0,2238.0,2237.0,1.84179029]
[1625516362413,1.0,2237.9,2237.0,1.84179029]
[1625516362948,1.0,2237.9,2237.3,55.8872]
[1625516363218,1.0,2237.9,2236.3,2.63184198]
[1625516363518,1.0,2237.9,2236.4,0.20553391]
[1625516363718,1.0,2237.9,2236.0,0.20503933]
[1625516363821,4.41054,2236.1,2236.0,0.20503933]
[1625516363922,7.65774,2236.1,2236.0,0.20503933]
[1625516364219,7.65774,2236.1,2235.9,0.20504939]
[1625516364418,7.65774,2236.1,2236.0,0.1324161]
[1625516364819,7.65774,2236.1,2235.8,2.20527]
[1625516365068,8.65774,2236.1,2235.9,0.20447403]
[1625516365170,8.65774,2236.1,2235.9,0.13242014]
[1625516365572,8.65774,2236.1,2235.8,2.20527]
[1625516366021,7.65774,2236.1,2235.8,2.20527]
[1625516366726,7.65774,2236.1,2236.0,51.724]
[1625516368274,2.20527,2236.1,2236.0,51.724]
[1625516368375,2.20527,2236.1,2236.0,54.1736]
[1625516368581,2.20527,2236.1,2236.0,54.30601602]
[1625516368777,14.212,2238.1,2236.0,54.30601602]
[1625516368876,14.212,2238.1,2236.0,54.1736]
[1625516368975,19.212,2238.1,2236.0,54.1736]
[1625516369078,5.0,2238.1,2236.0,2.4496]
[1625516369278,5.0,2238.1,2235.8,2.20527]
[1625516369378,1.0,2238.0,2235.8,2.20527]
[1625516369578,1.0,2238.0,2235.6,4.759]
[1625516369579,2.58961972,2237.9,2235.6,4.759]
[1625516369676,45.6304,2236.2,2235.6,4.759]
[1625516369778,1.0,2236.1,2234.9,14.5599]
[1625516369877,2.20527,2235.2,2235.1,2.20527]
[1625516370080,4.57517,2235.2,2235.1,2.20527]
[1625516370281,56.32057,2235.2,2234.9,2.20527]
[1625516370680,56.32057,2235.2,2234.0,2.62343754]
[1625516370985,56.32057,2235.2,2233.2,4.759]
[1625516370986,56.32057,2235.2,2233.4,2.61990305]
[1625516371233,56.32057,2235.2,2233.5,0.20347991]
[1625516371435,56.32057,2235.2,2233.5,0.13251176]
[1625516371532,5.57517,2235.2,2233.6,39.6022]
[1625516371735,4.57517,2235.2,2233.6,39.6022]
[1625516371936,2.20527,2234.2,2234.1,2.20527]
[1625516373599,4.85777,2234.2,2234.1,2.20527]
[1625516373913,7.06304,2234.2,2234.1,2.20527]
[1625516374820,4.41054,2234.2,2234.1,2.20527]
[1625516375319,38.6805,2235.5,2234.1,2.20527]
[1625516375420,1.0,2235.4,2234.1,2.20527]
[1625516375519,38.6805,2235.5,2234.1,2.20527]
[1625516375924,2.20527,2234.4,2234.1,2.20527]
[1625516376330,4.81447,2234.4,2234.1,2.20527]
[1625516377133,2.6092,2234.4,2234.1,2.20527]
[1625516377785,2.20527,2234.7,2234.1,2.20527]
[1625516377983,2.20527,2234.7,2234.5,2.20527]
[1625516378084,45.6304,2236.2,2234.5,4.37977]
[1625516378185,61.6211,2237.4,2234.5,4.37977]
[1625516378786,5.0,2237.3,2234.5,4.37977]
[1625516379287,1.0,2237.2,2234.5,4.37977]
[1625516379788,47.8346,2236.3,2234.5,4.37977]
[1625516379890,6.0,2236.2,2234.5,4.37977]
[1625516379991,2.20527,2234.6,2234.5,2.20527]
[1625516380090,1.0,2236.2,2234.5,2.20527]
[1625516380490,1.0,2236.2,2234.7,55.4927]
[1625516380688,1.0,2236.2,2234.7,58.3693]
[1625516380989,1.0,2236.2,2234.7,47.3693]
[1625516381992,2.20527,2235.2,2234.9,2.20527]
[1625516382443,3.20527,2235.2,2234.9,2.20527]
[1625516382644,3.20527,2235.2,2234.7,44.4927]
[1625516383195,3.20527,2235.2,2234.2,2.3663]
[1625516383301,3.20527,2235.2,2233.5,52.8119]
[1625516383997,3.20527,2235.2,2234.9,2.20527]
[1625516386261,3.20527,2235.2,2234.9,4.72807]
[1625516388021,5.41054,2235.2,2234.9,4.72807]
[1625516388786,4.41054,2235.2,2234.9,4.72807]
[1625516396101,4.41054,2235.2,2235.1,2.20527]
[1625516396301,1.0,2236.2,2235.1,2.20527]
[1625516398167,2.20527,2235.8,2235.7,2.20527]
[1625516398353,3.20527,2235.8,2235.7,2.20527]
[1625516399679,2.20527,2235.8,2235.7,2.20527]
[1625516400162,2.20527,2235.8,2235.7,4.41054]
[1625516405257,2.20527,2235.8,2235.7,6.98704]
[1625516407563,3.20527,2235.8,2235.7,6.98704]
[1625516407867,2.20527,2235.8,2235.7,6.98704]
[1625516408914,3.20527,2235.8,2235.7,6.98704]
[1625516411272,2.20527,2235.8,2235.7,6.98704]
[1625516411473,3.20527,2235.8,2235.7,6.98704]
[1625516411574,3.20527,2235.8,2235.7,4.41054]
[1625516412536,2.20527,2235.8,2235.7,4.41054]
[1625516412985,3.20527,2235.8,2235.7,4.41054]
[1625516413536,2.20527,2235.8,2235.7,4.41054]
[1625516414036,2.20527,2235.8,2235.0,53.0181]
[1625516414239,2.20527,2235.8,2235.7,2.20527]
[1625516414837,2.20527,2235.8,2235.5,2.20527]
[1625516416240,2.20527,2235.8,2235.5,4.41054]
[1625516416342,2.20527,2235.8,2235.5,2.20527]
[1625516417799,1.0,2235.7,2234.6,0.9059]
[1625516417900,1.0,2235.7,2234.2,14.8764]
[1625516418199,2.20527,2234.9,2234.8,2.20527]
[1625516418298,3.20527,2234.9,2234.8,2.20527]
[1625516418401,2.20527,2234.9,2234.8,2.20527]
[1625516418602,3.20527,2234.9,2234.2,14.8764]
[1625516418704,5.38877,2234.9,2234.2,14.8764]
[1625516418902,5.38877,2234.9,2234.0,1.15]
[1625516420206,2.20527,2234.3,2234.2,2.20527]
[1625516420310,3.20527,2234.3,2234.2,2.20527]
[1625516420445,6.51297,2234.3,2234.0,1.15]
[1625516420519,6.51297,2234.3,2232.8,14.9921]
[1625516420775,6.51297,2234.3,2233.7,0.20573569]
[1625516420978,6.51297,2234.3,2232.8,14.9921]
[1625516421067,54.3955,2234.1,2232.8,14.9921]
[1625516421170,1.0,2234.0,2232.9,0.20577527]